[Event "Titled Tuesday Blitz March 01 Early 2022"]
[White "Griffith, Kyron"]
[Black "Viani Antonio Dcunha"]
[WhiteFideId "2046318"]
[BlackFideId "5027330"]
[WhiteElo "2232"]
[BlackElo "2366"]
[Result "1-0"]
[Round "02"]
[TimeControl "180+1"]
[Date "2022.03.01"]
[WhiteClock "0:00:03"]
[BlackClock "0:00:01"]

1. e4 {[%clk 0:03:00]}  c5 {[%clk 0:02:59]} 2. Nf3 {[%clk 0:03:00]}  e6 {[%clk 0:02:58]} 3. b3 {[%clk 0:02:59]}  d5 {[%clk 0:02:57]} 4. exd5 {[%clk 0:02:58]}  exd5 {[%clk 0:02:57]} 5. d4 {[%clk 0:02:58]}  Nf6 {[%clk 0:02:55]} 6. Bb5+ {[%clk 0:02:57]}  Nc6 {[%clk 0:02:54]} 7. Qe2+ {[%clk 0:02:57]}  Be7 {[%clk 0:02:54]} 8. O-O {[%clk 0:02:51]}  O-O {[%clk 0:02:51]} 9. dxc5 {[%clk 0:02:48]}  Bxc5 {[%clk 0:02:36]} 10. Bb2 {[%clk 0:02:42]}  Bg4 {[%clk 0:02:32]} 11. Bxc6 {[%clk 0:02:39]}  bxc6 {[%clk 0:02:31]} 12. h3 {[%clk 0:02:37]}  Bh5 {[%clk 0:02:30]} 13. Nbd2 {[%clk 0:02:29]}  Re8 {[%clk 0:02:22]} 14. Qd3 {[%clk 0:02:26]}  Bg6 {[%clk 0:02:21]} 15. Qc3 {[%clk 0:02:23]}  Qd6 {[%clk 0:02:13]} 16. a3 {[%clk 0:02:10]}  Re2 {[%clk 0:02:00]} 17. b4 {[%clk 0:01:58]}  Bb6 {[%clk 0:02:00]} 18. Rad1 {[%clk 0:01:57]}  Bc7 {[%clk 0:01:50]} 19. Nc4 {[%clk 0:01:18]}  Qf4 {[%clk 0:01:40]} 20. Ne3 {[%clk 0:01:12]}  Be4 {[%clk 0:01:27]} 21. Rd4 {[%clk 0:01:04]}  Qd6 {[%clk 0:00:49]} 22. Nc4 {[%clk 0:00:58]}  Qe6 {[%clk 0:00:46]} 23. Ncd2 {[%clk 0:00:54]}  Bb6 {[%clk 0:00:33]} 24. Rd1 {[%clk 0:00:27]}  Re8 {[%clk 0:00:23]} 25. Nxe4 {[%clk 0:00:26]}  dxe4 {[%clk 0:00:20]} 26. Rd6 {[%clk 0:00:26]}  Qf5 {[%clk 0:00:18]} 27. Qxc6 {[%clk 0:00:17]}  Rxf2 {[%clk 0:00:15]} 28. Rxf6 {[%clk 0:00:14]}  gxf6 {[%clk 0:00:12]} 29. Qxe8+ {[%clk 0:00:13]}  Kg7 {[%clk 0:00:12]} 30. Nd4 {[%clk 0:00:07]}  Qf4 {[%clk 0:00:06]} 31. Qd7 {[%clk 0:00:04]}  Qg3 {[%clk 0:00:03]} 32. Qg4+ {[%clk 0:00:04]}  Qxg4 {[%clk 0:00:02]} 33. hxg4 {[%clk 0:00:05]}  Rxc2 {[%clk 0:00:03]} 34. Ba1 {[%clk 0:00:06]}  Ra2 {[%clk 0:00:03]} 35. Kf1 {[%clk 0:00:04]}  Rxa3 {[%clk 0:00:04]} 36. Ne2 {[%clk 0:00:04]}  e3 {[%clk 0:00:03]} 37. Ng3 {[%clk 0:00:03]}  Ra2 {[%clk 0:00:03]} 38. Nf5+ {[%clk 0:00:02]}  Kg6 {[%clk 0:00:02]} 39. Bd4 {[%clk 0:00:02]}  Rf2+ {[%clk 0:00:02]} 40. Ke1 {[%clk 0:00:03]}  Bxd4 {[%clk 0:00:02]} 41. Rxd4 {[%clk 0:00:03]}  Rxg2 {[%clk 0:00:03]} 42. Nxe3 {[%clk 0:00:03]}  Rg3 {[%clk 0:00:03]} 43. Kf2 {[%clk 0:00:04]}  Rh3 {[%clk 0:00:04]} 44. Rd7 {[%clk 0:00:03]}  Kg5 {[%clk 0:00:04]} 45. Rxf7 {[%clk 0:00:02]}  Rh2+ {[%clk 0:00:03]} 46. Kf3 {[%clk 0:00:02]}  Rh3+ {[%clk 0:00:03]} 47. Ke4 {[%clk 0:00:03]}  f5+ {[%clk 0:00:02]} 48. Rxf5+ {[%clk 0:00:03]}  Kg6 {[%clk 0:00:01]} 49. Re5 {[%clk 0:00:03]}  Rh2 {[%clk 0:00:01]} 50. Ra5 {[%clk 0:00:03]} 1-0


[Site "https://www.chess.com"]

[Event "Titled Tuesday Blitz March 01 Early 2022"]
[White "Gubanov, Oleg"]
[Black "Fier, Alexandr"]
[WhiteFideId "14115115"]
[BlackFideId "2107139"]
[WhiteElo "2080"]
[BlackElo "2569"]
[Result "0-1"]
[Round "02"]
[TimeControl "180+1"]
[Date "2022.03.01"]
[WhiteClock "0:00:15"]
[BlackClock "0:01:39"]

1. e4 {[%clk 0:03:00]}  e5 {[%clk 0:02:58]} 2. Nf3 {[%clk 0:02:58]}  Nf6 {[%clk 0:02:59]} 3. Nxe5 {[%clk 0:02:50]}  d6 {[%clk 0:02:59]} 4. Nf3 {[%clk 0:02:50]}  Nxe4 {[%clk 0:03:00]} 5. Bd3 {[%clk 0:02:50]}  Nf6 {[%clk 0:02:59]} 6. O-O {[%clk 0:02:51]}  Be7 {[%clk 0:02:59]} 7. Re1 {[%clk 0:02:51]}  O-O {[%clk 0:02:59]} 8. c4 {[%clk 0:02:51]}  b6 {[%clk 0:03:00]} 9. Nc3 {[%clk 0:02:50]}  Bb7 {[%clk 0:03:00]} 10. Bf1 {[%clk 0:02:46]}  Nbd7 {[%clk 0:03:00]} 11. d4 {[%clk 0:02:46]}  d5 {[%clk 0:03:00]} 12. Ne5 {[%clk 0:02:22]}  a6 {[%clk 0:02:55]} 13. Qb3 {[%clk 0:02:17]}  c5 {[%clk 0:02:42]} 14. Nxd7 {[%clk 0:02:14]}  Nxd7 {[%clk 0:02:38]} 15. Nxd5 {[%clk 0:02:10]}  Bxd5 {[%clk 0:02:38]} 16. cxd5 {[%clk 0:02:10]}  cxd4 {[%clk 0:02:37]} 17. Qc4 {[%clk 0:01:24]}  Bf6 {[%clk 0:02:33]} 18. Bf4 {[%clk 0:01:18]}  b5 {[%clk 0:02:31]} 19. Qc6 {[%clk 0:01:15]}  Ra7 {[%clk 0:02:20]} 20. a4 {[%clk 0:01:05]}  bxa4 {[%clk 0:02:04]} 21. Rxa4 {[%clk 0:01:04]}  Nb6 {[%clk 0:01:59]} 22. Ra5 {[%clk 0:00:41]}  Nc4 {[%clk 0:01:59]} 23. Ra2 {[%clk 0:00:24]}  Nb6 {[%clk 0:01:48]} 24. d6 {[%clk 0:00:24]}  Nd7 {[%clk 0:01:46]} 25. Rxa6 {[%clk 0:00:23]}  Nb8 {[%clk 0:01:44]} 26. Qb6 {[%clk 0:00:21]}  Rxa6 {[%clk 0:01:43]} 27. Qxd8 {[%clk 0:00:20]}  Rxd8 {[%clk 0:01:44]} 28. Bxa6 {[%clk 0:00:20]}  Nxa6 {[%clk 0:01:44]} 29. d7 {[%clk 0:00:20]}  g5 {[%clk 0:01:38]} 30. Re8+ {[%clk 0:00:19]}  Kg7 {[%clk 0:01:39]} 31. Be5 {[%clk 0:00:17]}  Rxd7 {[%clk 0:01:38]} 32. Bxf6+ {[%clk 0:00:15]}  Kxf6 {[%clk 0:01:39]} 0-1


[Site "https://www.chess.com"]

[Event "Titled Tuesday Blitz March 01 Early 2022"]
[White "Hakemi, Arman"]
[Black "Rodchenkov, Vitaly"]
[WhiteFideId "22520805"]
[BlackFideId "4152964"]
[WhiteElo "2208"]
[BlackElo "2337"]
[Result "1/2-1/2"]
[Round "02"]
[TimeControl "180+1"]
[Date "2022.03.01"]
[WhiteClock "0:00:07"]
[BlackClock "0:01:09"]

1. e4 {[%clk 0:03:00]}  c5 {[%clk 0:02:59]} 2. Nf3 {[%clk 0:03:00]}  d6 {[%clk 0:02:59]} 3. Bb5+ {[%clk 0:02:59]}  Nd7 {[%clk 0:02:58]} 4. c3 {[%clk 0:02:59]}  Nf6 {[%clk 0:02:58]} 5. Qe2 {[%clk 0:03:00]}  a6 {[%clk 0:02:58]} 6. Ba4 {[%clk 0:03:00]}  b5 {[%clk 0:02:58]} 7. Bc2 {[%clk 0:03:01]}  Bb7 {[%clk 0:02:58]} 8. d4 {[%clk 0:03:02]}  e5 {[%clk 0:02:58]} 9. O-O {[%clk 0:03:02]}  Be7 {[%clk 0:02:57]} 10. Rd1 {[%clk 0:03:03]}  Qc7 {[%clk 0:02:57]} 11. d5 {[%clk 0:03:02]}  c4 {[%clk 0:02:57]} 12. b3 {[%clk 0:03:01]}  O-O {[%clk 0:02:54]} 13. Bd2 {[%clk 0:02:49]}  Rfc8 {[%clk 0:02:52]} 14. Na3 {[%clk 0:02:49]}  Nb6 {[%clk 0:02:49]} 15. Rac1 {[%clk 0:02:45]}  Qd7 {[%clk 0:02:46]} 16. Be3 {[%clk 0:02:41]}  Bd8 {[%clk 0:02:44]} 17. Nh4 {[%clk 0:02:35]}  g6 {[%clk 0:02:43]} 18. Qf3 {[%clk 0:02:33]}  cxb3 {[%clk 0:02:39]} 19. Bxb3 {[%clk 0:02:26]}  Nc4 {[%clk 0:02:38]} 20. Nxc4 {[%clk 0:02:21]}  bxc4 {[%clk 0:02:38]} 21. Bc2 {[%clk 0:02:22]}  Qg4 {[%clk 0:02:32]} 22. Rb1 {[%clk 0:02:08]}  Qxf3 {[%clk 0:02:27]} 23. Nxf3 {[%clk 0:02:09]}  Rc7 {[%clk 0:02:28]} 24. Bb6 {[%clk 0:02:06]}  Rd7 {[%clk 0:02:28]} 25. Bxd8 {[%clk 0:02:07]}  Raxd8 {[%clk 0:02:27]} 26. Rb6 {[%clk 0:02:08]}  Bc8 {[%clk 0:02:22]} 27. Nxe5 {[%clk 0:02:01]}  dxe5 {[%clk 0:02:19]} 28. Rxf6 {[%clk 0:01:55]}  Rb7 {[%clk 0:02:19]} 29. Rb1 {[%clk 0:01:53]}  Rxb1+ {[%clk 0:02:18]} 30. Bxb1 {[%clk 0:01:53]}  Kf8 {[%clk 0:02:16]} 31. Rc6 {[%clk 0:01:52]}  Ke7 {[%clk 0:02:16]} 32. Rxc4 {[%clk 0:01:51]}  Bd7 {[%clk 0:02:15]} 33. Rb4 {[%clk 0:01:44]}  Rc8 {[%clk 0:02:12]} 34. c4 {[%clk 0:01:44]}  a5 {[%clk 0:02:12]} 35. Rb6 {[%clk 0:01:39]}  Rxc4 {[%clk 0:02:12]} 36. Kf1 {[%clk 0:01:39]}  Rb4 {[%clk 0:01:57]} 37. Rxb4 {[%clk 0:01:36]}  axb4 {[%clk 0:01:57]} 38. Ke2 {[%clk 0:01:35]}  Kd6 {[%clk 0:01:58]} 39. Kd2 {[%clk 0:01:32]}  Kc5 {[%clk 0:01:58]} 40. Kc2 {[%clk 0:01:27]}  g5 {[%clk 0:01:57]} 41. Kb3 {[%clk 0:01:26]}  Bb5 {[%clk 0:01:57]} 42. g3 {[%clk 0:01:18]}  f6 {[%clk 0:01:45]} 43. h4 {[%clk 0:01:13]}  h6 {[%clk 0:01:42]} 44. Bc2 {[%clk 0:01:09]}  Bc4+ {[%clk 0:01:40]} 45. Kb2 {[%clk 0:01:07]}  Bb5 {[%clk 0:01:39]} 46. Bd1 {[%clk 0:01:02]}  Bd3 {[%clk 0:01:37]} 47. Bf3 {[%clk 0:00:54]}  Bc4 {[%clk 0:01:33]} 48. Bg4 {[%clk 0:00:51]}  Bd3 {[%clk 0:01:31]} 49. Bf5 {[%clk 0:00:49]}  Bc4 {[%clk 0:01:31]} 50. hxg5 {[%clk 0:00:32]}  fxg5 {[%clk 0:01:23]} 51. g4 {[%clk 0:00:33]}  Bb5 {[%clk 0:01:22]} 52. Kb3 {[%clk 0:00:29]}  Be8 {[%clk 0:01:17]} 53. Be6 {[%clk 0:00:16]}  Bb5 {[%clk 0:01:16]} 54. a3 {[%clk 0:00:16]}  Bc4+ {[%clk 0:01:14]} 55. Kb2 {[%clk 0:00:14]}  bxa3+ {[%clk 0:01:14]} 56. Kxa3 {[%clk 0:00:15]}  Bd3 {[%clk 0:01:14]} 57. Bf5 {[%clk 0:00:15]}  Bb5 {[%clk 0:01:14]} 58. Kb3 {[%clk 0:00:16]}  Be8 {[%clk 0:01:12]} 59. Kc3 {[%clk 0:00:16]}  Bb5 {[%clk 0:01:12]} 60. Kb3 {[%clk 0:00:16]}  Be8 {[%clk 0:01:12]} 61. Be6 {[%clk 0:00:16]}  Bb5 {[%clk 0:01:12]} 62. Kc3 {[%clk 0:00:13]}  Ba6 {[%clk 0:01:11]} 63. Kb3 {[%clk 0:00:11]}  Bb5 {[%clk 0:01:11]} 64. Ka3 {[%clk 0:00:11]}  Be8 {[%clk 0:01:11]} 65. Bc8 {[%clk 0:00:07]}  Bb5 {[%clk 0:01:10]} 66. Bf5 {[%clk 0:00:04]}  Be8 {[%clk 0:01:09]} 67. Kb3 {[%clk 0:00:05]}  Bb5 {[%clk 0:01:09]} 68. Kc3 {[%clk 0:00:05]}  Ba6 {[%clk 0:01:09]} 69. Kb3 {[%clk 0:00:06]}  Bb5 {[%clk 0:01:09]} 70. Ka3 {[%clk 0:00:07]}  Be8 {[%clk 0:01:09]} 71. Kb3 {[%clk 0:00:07]}  Bb5 {[%clk 0:01:09]} 1/2-1/2


[Site "https://www.chess.com"]

[Event "Titled Tuesday Blitz March 01 Early 2022"]
[White "Hess, Robert"]
[Black "Di Nicolantonio, Lucas"]
[WhiteFideId "2022036"]
[BlackFideId "680460"]
[WhiteElo "2557"]
[BlackElo "2381"]
[Result "1-0"]
[Round "02"]
[TimeControl "180+1"]
[Date "2022.03.01"]
[WhiteClock "0:00:25"]
[BlackClock "0:00:11"]

1. b3 {[%clk 0:03:00]}  Nf6 {[%clk 0:02:58]} 2. Bb2 {[%clk 0:02:59]}  g6 {[%clk 0:02:58]} 3. d3 {[%clk 0:02:59]}  Bg7 {[%clk 0:02:59]} 4. Nd2 {[%clk 0:03:00]}  O-O {[%clk 0:03:00]} 5. h3 {[%clk 0:02:58]}  d5 {[%clk 0:03:00]} 6. e3 {[%clk 0:02:57]}  c5 {[%clk 0:03:00]} 7. Ne2 {[%clk 0:02:58]}  Nc6 {[%clk 0:03:00]} 8. g4 {[%clk 0:02:58]}  d4 {[%clk 0:02:54]} 9. e4 {[%clk 0:02:57]}  e5 {[%clk 0:02:48]} 10. Bg2 {[%clk 0:02:50]}  h5 {[%clk 0:02:41]} 11. Ng3 {[%clk 0:02:50]}  h4 {[%clk 0:02:25]} 12. Ne2 {[%clk 0:02:49]}  Nh7 {[%clk 0:02:18]} 13. a3 {[%clk 0:02:28]}  Ng5 {[%clk 0:02:14]} 14. f4 {[%clk 0:02:17]}  exf4 {[%clk 0:02:12]} 15. Nxf4 {[%clk 0:02:18]}  Ne6 {[%clk 0:02:03]} 16. Nd5 {[%clk 0:02:12]}  Qd6 {[%clk 0:01:56]} 17. O-O {[%clk 0:02:00]}  Ng5 {[%clk 0:01:51]} 18. Qe1 {[%clk 0:01:55]}  Qd8 {[%clk 0:01:30]} 19. Qxh4 {[%clk 0:01:53]}  Ne5 {[%clk 0:01:23]} 20. Qg3 {[%clk 0:01:48]}  Be6 {[%clk 0:01:12]} 21. Nf4 {[%clk 0:01:35]}  Nc6 {[%clk 0:01:07]} 22. h4 {[%clk 0:01:32]}  Nh7 {[%clk 0:01:08]} 23. Nxe6 {[%clk 0:01:29]}  fxe6 {[%clk 0:01:09]} 24. g5 {[%clk 0:01:28]}  Be5 {[%clk 0:01:05]} 25. Qg4 {[%clk 0:01:26]}  Qe7 {[%clk 0:01:04]} 26. Nc4 {[%clk 0:01:21]}  Bc7 {[%clk 0:01:05]} 27. e5 {[%clk 0:01:21]}  Nxe5 {[%clk 0:00:54]} 28. Nxe5 {[%clk 0:01:21]}  Bxe5 {[%clk 0:00:55]} 29. Qe4 {[%clk 0:01:22]}  Rf5 {[%clk 0:00:51]} 30. Bh3 {[%clk 0:00:58]}  Nxg5 {[%clk 0:00:40]} 31. hxg5 {[%clk 0:00:59]}  Qxg5+ {[%clk 0:00:34]} 32. Qg2 {[%clk 0:00:38]}  Qe3+ {[%clk 0:00:33]} 33. Kh1 {[%clk 0:00:37]}  Kg7 {[%clk 0:00:17]} 34. Rae1 {[%clk 0:00:27]}  Rxf1+ {[%clk 0:00:17]} 35. Rxf1 {[%clk 0:00:28]}  Rh8 {[%clk 0:00:16]} 36. Qxb7+ {[%clk 0:00:26]}  Kh6 {[%clk 0:00:11]} 37. Bc1 {[%clk 0:00:25]} 1-0


[Site "https://www.chess.com"]

[Event "Titled Tuesday Blitz March 01 Early 2022"]
[White "Hoffmann, Asa"]
[Black "Garagulya, Konstantin"]
[WhiteFideId "2001470"]
[BlackFideId "4128931"]
[WhiteElo "2117"]
[BlackElo "2329"]
[Result "0-1"]
[Round "02"]
[TimeControl "180+1"]
[Date "2022.03.01"]
[WhiteClock "0:00:14"]
[BlackClock "0:00:27"]

1. d4 {[%clk 0:02:56]}  Nf6 {[%clk 0:02:59]} 2. Bg5 {[%clk 0:02:53]}  e6 {[%clk 0:02:59]} 3. Nd2 {[%clk 0:02:53]}  c5 {[%clk 0:03:00]} 4. e3 {[%clk 0:02:52]}  d5 {[%clk 0:02:57]} 5. c3 {[%clk 0:02:51]}  Nc6 {[%clk 0:02:56]} 6. f4 {[%clk 0:02:50]}  Qb6 {[%clk 0:02:52]} 7. Rb1 {[%clk 0:02:50]}  Bd6 {[%clk 0:02:44]} 8. Bd3 {[%clk 0:02:48]}  Bd7 {[%clk 0:02:38]} 9. Ngf3 {[%clk 0:02:47]}  h6 {[%clk 0:02:36]} 10. Bh4 {[%clk 0:02:46]}  Ng4 {[%clk 0:02:33]} 11. Qe2 {[%clk 0:02:44]}  cxd4 {[%clk 0:02:28]} 12. exd4 {[%clk 0:02:16]}  Bxf4 {[%clk 0:02:23]} 13. O-O {[%clk 0:02:16]}  Qc7 {[%clk 0:01:59]} 14. h3 {[%clk 0:02:10]}  Nh2 {[%clk 0:01:51]} 15. Rfe1 {[%clk 0:02:05]}  O-O {[%clk 0:01:42]} 16. Ne5 {[%clk 0:01:43]}  Nxe5 {[%clk 0:01:36]} 17. dxe5 {[%clk 0:01:43]}  f6 {[%clk 0:01:20]} 18. exf6 {[%clk 0:01:36]}  gxf6 {[%clk 0:01:20]} 19. Qh5 {[%clk 0:01:27]}  Rf7 {[%clk 0:01:04]} 20. Nb3 {[%clk 0:01:18]}  Bg3 {[%clk 0:00:48]} 21. Qg6+ {[%clk 0:01:02]}  Rg7 {[%clk 0:00:48]} 22. Qxf6 {[%clk 0:01:01]}  Rf8 {[%clk 0:00:42]} 23. Rxe6 {[%clk 0:00:26]}  Rxf6 {[%clk 0:00:40]} 24. Bxf6 {[%clk 0:00:23]}  Bxe6 {[%clk 0:00:39]} 25. Bxg7 {[%clk 0:00:21]}  Kxg7 {[%clk 0:00:35]} 26. Nd4 {[%clk 0:00:21]}  Bd7 {[%clk 0:00:33]} 27. Bf5 {[%clk 0:00:19]}  Be5 {[%clk 0:00:29]} 28. Re1 {[%clk 0:00:14]}  Bxd4+ {[%clk 0:00:26]} 29. cxd4 {[%clk 0:00:14]}  Bxf5 {[%clk 0:00:27]} 0-1


[Site "https://www.chess.com"]

[Event "Titled Tuesday Blitz March 01 Early 2022"]
[White "Jakubowska, Anna"]
[Black "Mohammadian, Mohammad"]
[WhiteFideId "1121952"]
[BlackFideId "12566055"]
[WhiteElo "1924"]
[BlackElo "1543"]
[Result "1-0"]
[Round "02"]
[TimeControl "180+1"]
[Date "2022.03.01"]
[WhiteClock "0:01:08"]
[BlackClock "0:00:21"]

1. e4 {[%clk 0:03:00]}  e5 {[%clk 0:02:57]} 2. Nf3 {[%clk 0:03:00]}  Nc6 {[%clk 0:02:54]} 3. Bb5 {[%clk 0:03:00]}  a6 {[%clk 0:02:52]} 4. Ba4 {[%clk 0:03:00]}  Nf6 {[%clk 0:02:50]} 5. O-O {[%clk 0:03:00]}  Be7 {[%clk 0:02:48]} 6. d3 {[%clk 0:02:59]}  b5 {[%clk 0:02:48]} 7. Bb3 {[%clk 0:02:59]}  d6 {[%clk 0:02:48]} 8. a4 {[%clk 0:02:58]}  Bb7 {[%clk 0:02:45]} 9. Na3 {[%clk 0:02:56]}  b4 {[%clk 0:02:41]} 10. Nc4 {[%clk 0:02:55]}  a5 {[%clk 0:02:38]} 11. Bg5 {[%clk 0:02:52]}  O-O {[%clk 0:02:36]} 12. Ne3 {[%clk 0:02:52]}  h6 {[%clk 0:02:21]} 13. Bh4 {[%clk 0:02:51]}  Bc8 {[%clk 0:02:13]} 14. d4 {[%clk 0:02:19]}  exd4 {[%clk 0:02:12]} 15. Nxd4 {[%clk 0:02:18]}  Bb7 {[%clk 0:01:55]} 16. Ndf5 {[%clk 0:01:47]}  Nxe4 {[%clk 0:01:44]} 17. Qg4 {[%clk 0:01:45]}  Ng5 {[%clk 0:01:31]} 18. f4 {[%clk 0:01:32]}  Bf6 {[%clk 0:00:49]} 19. fxg5 {[%clk 0:01:23]}  Bxg5 {[%clk 0:00:43]} 20. Bxg5 {[%clk 0:01:11]}  Qxg5 {[%clk 0:00:43]} 21. Qxg5 {[%clk 0:01:11]}  hxg5 {[%clk 0:00:42]} 22. Bd5 {[%clk 0:01:11]}  Rab8 {[%clk 0:00:40]} 23. Bxc6 {[%clk 0:01:10]}  Bxc6 {[%clk 0:00:40]} 24. Ne7+ {[%clk 0:01:10]}  Kh8 {[%clk 0:00:36]} 25. Nxc6 {[%clk 0:01:11]}  Rfe8 {[%clk 0:00:35]} 26. Nxb8 {[%clk 0:01:11]}  Rxe3 {[%clk 0:00:34]} 27. Rae1 {[%clk 0:01:09]}  Re5 {[%clk 0:00:23]} 28. Rxe5 {[%clk 0:01:08]}  dxe5 {[%clk 0:00:23]} 29. Rxf7 {[%clk 0:01:09]}  Kg8 {[%clk 0:00:21]} 30. Rxc7 {[%clk 0:01:08]} 1-0


[Site "https://www.chess.com"]

[Event "Titled Tuesday Blitz March 01 Early 2022"]
[White "Jaskolka, Tomasz"]
[Black "Shevtchenko, Olesya"]
[WhiteFideId "1170791"]
[BlackFideId "24131890"]
[WhiteElo "2054"]
[BlackElo "2003"]
[Result "1-0"]
[Round "02"]
[TimeControl "180+1"]
[Date "2022.03.01"]
[WhiteClock "0:00:43"]
[BlackClock "0:01:57"]

1. d4 {[%clk 0:03:00]}  d5 {[%clk 0:02:58]} 2. Bf4 {[%clk 0:03:01]}  c5 {[%clk 0:02:55]} 3. e3 {[%clk 0:03:00]}  Nc6 {[%clk 0:02:54]} 4. c3 {[%clk 0:02:56]}  Qb6 {[%clk 0:02:53]} 5. Qb3 {[%clk 0:02:49]}  c4 {[%clk 0:02:53]} 6. Qc2 {[%clk 0:02:50]}  e5 {[%clk 0:02:53]} 7. dxe5 {[%clk 0:02:48]}  Bf5 {[%clk 0:02:53]} 8. Qc1 {[%clk 0:02:43]}  g5 {[%clk 0:02:52]} 9. Bg3 {[%clk 0:02:37]}  h5 {[%clk 0:02:50]} 10. h4 {[%clk 0:02:36]}  g4 {[%clk 0:02:51]} 11. Ne2 {[%clk 0:02:20]}  Bg7 {[%clk 0:02:50]} 12. Nd4 {[%clk 0:02:16]}  Bg6 {[%clk 0:02:41]} 13. e6 {[%clk 0:02:06]}  Nxd4 {[%clk 0:02:29]} 14. exf7+ {[%clk 0:02:05]}  Kxf7 {[%clk 0:02:30]} 15. cxd4 {[%clk 0:02:02]}  Nf6 {[%clk 0:02:30]} 16. Nc3 {[%clk 0:02:01]}  Qa5 {[%clk 0:02:25]} 17. Be2 {[%clk 0:01:46]}  Ne4 {[%clk 0:02:24]} 18. O-O {[%clk 0:01:46]}  Nxg3 {[%clk 0:02:21]} 19. fxg3+ {[%clk 0:01:46]}  Kg8 {[%clk 0:02:22]} 20. Nxd5 {[%clk 0:01:42]}  Kh7 {[%clk 0:02:18]} 21. Nf4 {[%clk 0:01:32]}  Be4 {[%clk 0:02:14]} 22. Qxc4 {[%clk 0:01:21]}  Rhf8 {[%clk 0:02:12]} 23. Bd3 {[%clk 0:01:09]}  Qf5 {[%clk 0:02:09]} 24. Bxe4 {[%clk 0:01:08]}  Qxe4 {[%clk 0:02:09]} 25. Rae1 {[%clk 0:00:54]}  Rac8 {[%clk 0:02:06]} 26. Qd5 {[%clk 0:00:44]}  Rxf4 {[%clk 0:01:58]} 27. Qxh5+ {[%clk 0:00:43]}  Kg8 {[%clk 0:01:57]} 1-0


[Site "https://www.chess.com"]

[Event "Titled Tuesday Blitz March 01 Early 2022"]
[White "Kadam, Om Manish"]
[Black "Ahmadzada, Ahmad"]
[WhiteFideId "45076294"]
[BlackFideId "13413007"]
[WhiteElo "1729"]
[BlackElo "2228"]
[Result "0-1"]
[Round "02"]
[TimeControl "180+1"]
[Date "2022.03.01"]
[WhiteClock "0:00:13"]
[BlackClock "0:00:11"]

1. e4 {[%clk 0:03:00]}  d5 {[%clk 0:02:59]} 2. exd5 {[%clk 0:03:01]}  Qxd5 {[%clk 0:03:00]} 3. Nc3 {[%clk 0:03:01]}  Qd8 {[%clk 0:03:00]} 4. d4 {[%clk 0:03:01]}  Nf6 {[%clk 0:03:01]} 5. Nf3 {[%clk 0:03:02]}  Bg4 {[%clk 0:03:00]} 6. h3 {[%clk 0:02:59]}  Bxf3 {[%clk 0:03:00]} 7. Qxf3 {[%clk 0:03:00]}  c6 {[%clk 0:03:00]} 8. Be3 {[%clk 0:03:00]}  e6 {[%clk 0:03:00]} 9. a3 {[%clk 0:02:59]}  Nbd7 {[%clk 0:03:00]} 10. Be2 {[%clk 0:02:52]}  Be7 {[%clk 0:02:59]} 11. O-O {[%clk 0:02:52]}  O-O {[%clk 0:02:59]} 12. Rad1 {[%clk 0:02:52]}  Qc7 {[%clk 0:02:58]} 13. Bf4 {[%clk 0:02:50]}  Bd6 {[%clk 0:02:58]} 14. Bxd6 {[%clk 0:02:49]}  Qxd6 {[%clk 0:02:59]} 15. Ne4 {[%clk 0:02:49]}  Qc7 {[%clk 0:02:54]} 16. c4 {[%clk 0:02:48]}  Rad8 {[%clk 0:02:54]} 17. b4 {[%clk 0:02:48]}  Nxe4 {[%clk 0:02:52]} 18. Qxe4 {[%clk 0:02:48]}  Nf6 {[%clk 0:02:53]} 19. Qe3 {[%clk 0:02:47]}  Rd7 {[%clk 0:02:51]} 20. Rd2 {[%clk 0:02:47]}  Rfd8 {[%clk 0:02:51]} 21. Rfd1 {[%clk 0:02:47]}  a5 {[%clk 0:02:51]} 22. Qb3 {[%clk 0:02:46]}  Qb6 {[%clk 0:02:44]} 23. c5 {[%clk 0:02:39]}  Qc7 {[%clk 0:02:42]} 24. Bf3 {[%clk 0:02:39]}  axb4 {[%clk 0:02:07]} 25. axb4 {[%clk 0:02:40]}  Nd5 {[%clk 0:02:02]} 26. g3 {[%clk 0:02:24]}  g6 {[%clk 0:02:00]} 27. Kg2 {[%clk 0:02:23]}  Kg7 {[%clk 0:01:56]} 28. Rd3 {[%clk 0:02:23]}  h6 {[%clk 0:01:51]} 29. b5 {[%clk 0:02:23]}  Ra8 {[%clk 0:01:41]} 30. Qb2 {[%clk 0:02:15]}  Qa5 {[%clk 0:01:35]} 31. Rb3 {[%clk 0:02:10]}  Qa4 {[%clk 0:01:17]} 32. bxc6 {[%clk 0:02:00]}  bxc6 {[%clk 0:01:16]} 33. Rb7 {[%clk 0:02:00]}  Rxb7 {[%clk 0:01:07]} 34. Qxb7 {[%clk 0:02:01]}  Ne3+ {[%clk 0:00:50]} 35. Kh2 {[%clk 0:01:16]}  Nxd1 {[%clk 0:00:47]} 36. Bxc6 {[%clk 0:00:29]}  Ra7 {[%clk 0:00:33]} 37. Qb8 {[%clk 0:00:22]}  Qxc6 {[%clk 0:00:19]} 38. Qxa7 {[%clk 0:00:21]}  Qf3 {[%clk 0:00:20]} 39. Qa1 {[%clk 0:00:14]}  Qxf2+ {[%clk 0:00:19]} 40. Kh1 {[%clk 0:00:15]}  Ne3 {[%clk 0:00:11]} 41. Qg1 {[%clk 0:00:13]}  Qf3+ {[%clk 0:00:11]} 42. Kh2 {[%clk 0:00:13]}  Nf1+ {[%clk 0:00:11]} 0-1


[Site "https://www.chess.com"]

[Event "Titled Tuesday Blitz March 01 Early 2022"]
[White "Kanyamarala, Tarun"]
[Black "Sarkar, Justin"]
[WhiteFideId "45004714"]
[BlackFideId "2010011"]
[WhiteElo "2144"]
[BlackElo "2038"]
[Result "1-0"]
[Round "02"]
[TimeControl "180+1"]
[Date "2022.03.01"]
[WhiteClock "0:01:11"]
[BlackClock "0:00:01"]

1. d4 {[%clk 0:03:00]}  Nf6 {[%clk 0:02:58]} 2. c4 {[%clk 0:03:00]}  e6 {[%clk 0:02:57]} 3. Nc3 {[%clk 0:03:00]}  Bb4 {[%clk 0:02:57]} 4. e3 {[%clk 0:03:01]}  O-O {[%clk 0:02:56]} 5. Bd2 {[%clk 0:03:02]}  d5 {[%clk 0:02:36]} 6. Nf3 {[%clk 0:03:02]}  b6 {[%clk 0:02:28]} 7. cxd5 {[%clk 0:03:02]}  exd5 {[%clk 0:02:24]} 8. Rc1 {[%clk 0:03:02]}  c6 {[%clk 0:02:07]} 9. Bd3 {[%clk 0:03:01]}  Bg4 {[%clk 0:01:53]} 10. Qc2 {[%clk 0:02:50]}  Bxf3 {[%clk 0:01:37]} 11. gxf3 {[%clk 0:02:50]}  a5 {[%clk 0:01:33]} 12. Ne2 {[%clk 0:02:38]}  Bxd2+ {[%clk 0:01:27]} 13. Qxd2 {[%clk 0:02:37]}  Re8 {[%clk 0:01:21]} 14. Rg1 {[%clk 0:02:27]}  g6 {[%clk 0:01:16]} 15. Nf4 {[%clk 0:02:22]}  Qd6 {[%clk 0:01:15]} 16. Kf1 {[%clk 0:02:18]}  Kh8 {[%clk 0:00:36]} 17. h4 {[%clk 0:02:14]}  Nbd7 {[%clk 0:00:24]} 18. h5 {[%clk 0:02:11]}  Nxh5 {[%clk 0:00:20]} 19. Nxh5 {[%clk 0:01:58]}  gxh5 {[%clk 0:00:21]} 20. Ke2 {[%clk 0:01:55]}  c5 {[%clk 0:00:17]} 21. dxc5 {[%clk 0:01:50]}  bxc5 {[%clk 0:00:14]} 22. Rg5 {[%clk 0:01:49]}  Nf6 {[%clk 0:00:13]} 23. Qc3 {[%clk 0:01:43]}  d4 {[%clk 0:00:11]} 24. Qxc5 {[%clk 0:01:43]}  Qxc5 {[%clk 0:00:07]} 25. Rcxc5 {[%clk 0:01:43]}  dxe3 {[%clk 0:00:04]} 26. fxe3 {[%clk 0:01:43]}  a4 {[%clk 0:00:03]} 27. Rcf5 {[%clk 0:01:33]}  Re6 {[%clk 0:00:02]} 28. Ra5 {[%clk 0:01:30]}  Rae8 {[%clk 0:00:02]} 29. e4 {[%clk 0:01:26]}  Rb6 {[%clk 0:00:02]} 30. Rgb5 {[%clk 0:01:25]}  Reb8 {[%clk 0:00:02]} 31. Rxb6 {[%clk 0:01:20]}  Rxb6 {[%clk 0:00:02]} 32. Rb5 {[%clk 0:01:20]}  Rc6 {[%clk 0:00:01]} 33. Rb4 {[%clk 0:01:15]}  h4 {[%clk 0:00:01]} 34. e5 {[%clk 0:01:11]} 1-0


[Site "https://www.chess.com"]